bitfinex/quotes_ETHUSD_20250524
["timestamp","ask_amount","ask_price","bid_price","bid_amount"]
[1748088476675,3.90091671,2563.5,2563.4,27.14095303]
[1748088480185,15.59591671,2563.5,2563.4,27.90085303]
[1748088480766,3.90091671,2563.5,2563.4,27.90085303]
[1748088482719,3.90067412,2563.7,2563.4,27.90085303]
[1748088482855,0.8044,2564.1,2563.6,1.88759366]
[1748088482856,11.695,2563.9,2563.6,1.88759366]
[1748088483198,15.59530812,2563.9,2563.8,1.88759366]
[1748088483400,3.90030812,2563.9,2563.8,1.88759366]
[1748088483559,3.89815895,2565.4,2563.9,8.55]
[1748088483560,3.90029508,2564.0,2563.9,8.55]
[1748088483758,3.90029508,2564.0,2563.9,24.67459366]
[1748088483959,3.90029508,2564.0,2563.9,27.22470303]
[1748088486200,3.90029508,2564.0,2563.9,27.13470303]
[1748088486386,3.90029508,2564.0,2563.9,24.58459366]
[1748088489908,3.90076454,2563.6,2563.5,2.7900853]
[1748088490109,3.90091671,2563.5,2563.4,16.58359366]
[1748088490282,3.90091671,2563.5,2563.4,24.58359366]
[1748088490484,3.90091671,2563.5,2563.4,27.23848473]
[1748088493668,15.59491671,2563.5,2563.4,16.58359366]
[1748088493887,3.90106889,2563.4,2563.3,1.96531706]
[1748088494213,4.26568277,2563.4,2563.3,1.96531706]
[1748088494364,5.06458277,2563.4,2563.3,1.96531706]
[1748088494907,3.90167772,2563.0,2562.9,9.96531706]
[1748088495123,3.90167772,2563.0,2562.9,1.96531706]
[1748088495124,16.38627772,2563.0,2562.9,1.96531706]
[1748088495406,18.77967385,2563.0,2562.9,1.96531706]
[1748088496671,18.41505997,2563.0,2562.9,1.96531706]
[1748088498623,3.90243902,2562.5,2562.4,1.33759366]
[1748088498823,15.59843902,2562.5,2562.4,1.33759366]
[1748088500427,16.42083902,2562.5,2562.4,1.33759366]
[1748088501025,3.90243902,2562.5,2562.4,1.33759366]
[1748088503832,3.90243902,2562.5,2562.4,1.88759366]
[1748088503991,3.90243902,2562.5,2562.4,10.68579366]
[1748088504335,3.90243902,2562.5,2562.4,11.75437303]
[1748088504491,11.698,2562.7,2562.5,0.55]
[1748088504686,15.60021694,2562.7,2562.6,1.88759366]
[1748088504903,4.70270642,2563.2,2562.6,1.88759366]
[1748088504904,11.698,2562.8,2562.7,0.55]
[1748088505109,3.9019822,2562.8,2562.7,8.55]
[1748088505309,3.9019822,2562.8,2562.7,11.00895937]
[1748088506947,3.90171967,2563.0,2562.7,11.00895937]
[1748088507151,11.698,2563.2,2562.9,9.88759366]
[1748088507309,3.90167772,2563.0,2562.9,8.55]
[1748088507507,3.90167772,2563.0,2562.9,9.88759366]
[1748088507710,3.90167772,2563.0,2562.9,11.19807896]
[1748088511561,7.8165,2564.5,2562.9,9.88759366]
[1748088511744,3.90076454,2563.6,2563.5,1.33759366]
[1748088512055,15.59876454,2563.6,2563.5,1.33759366]
[1748088512363,15.59876454,2563.6,2563.1,1.33759366]
[1748088512364,3.90137328,2563.2,2563.1,1.33759366]
[1748088520578,3.90152549,2563.1,2563.0,22.702]
[1748088520951,3.90167772,2563.0,2562.9,1.33759366]
[1748088521280,11.697,2563.0,2562.8,9.33759366]
[1748088521954,3.90182995,2562.9,2562.8,9.88759366]
[1748088522887,3.90182995,2562.9,2562.8,11.90049531]
[1748088525587,3.90182995,2562.9,2562.8,12.71549531]
[1748088528807,15.59882995,2562.9,2562.8,12.71549531]
[1748088536082,3.90182995,2562.9,2562.8,12.71549531]
[1748088537474,3.90182995,2562.9,2562.8,11.90049531]
[1748088540314,3.90121873,2563.4,2562.9,9.3422]
[1748088540489,3.90106889,2563.4,2563.3,1.88759366]
[1748088540691,3.90106889,2563.4,2563.3,24.62159366]
[1748088544627,3.90106889,2563.4,2563.3,9.33759366]
[1748088544802,4.66256889,2563.4,2563.3,8.0]
[1748088545328,5.02742157,2563.4,2563.3,8.0]
[1748088549226,16.72442157,2563.4,2563.3,8.0]
[1748088553004,16.72442157,2563.4,2563.3,9.33759366]
[1748088554225,15.96292157,2563.4,2563.3,9.33759366]
[1748088554588,4.26592157,2563.4,2563.3,9.88759366]
[1748088554927,15.96292157,2563.4,2563.3,10.95529303]
[1748088555119,15.59806889,2563.4,2563.3,10.95529303]
[1748088555627,16.38486889,2563.4,2563.3,8.0]
[1748088556730,3.90122108,2563.3,2563.2,1.33759366]
[1748088556935,4.26572907,2563.3,2563.2,1.33759366]
[1748088558118,15.96272907,2563.3,2563.2,1.33759366]
[1748088558440,4.26572907,2563.3,2563.2,3.05925303]
[1748088558756,3.90122108,2563.3,2563.2,11.60925303]
[1748088562644,3.90122108,2563.3,2563.2,25.46235303]
[1748088562845,3.90122108,2563.3,2563.2,24.52859366]
[1748088568160,3.90122108,2563.3,2563.2,23.97859366]
[1748088568538,3.90122108,2563.3,2563.2,9.33759366]
[1748088569440,4.26587576,2563.3,2563.2,9.33759366]
[1748088572964,5.09757576,2563.3,2563.2,8.0]
[1748088574280,4.73292108,2563.3,2563.2,8.0]
[1748088576543,3.90122108,2563.3,2563.2,8.0]
[1748088576744,3.90122108,2563.3,2563.2,9.48375937]
[1748088576955,15.59822108,2563.3,2563.2,9.48375937]
[1748088577892,3.90122108,2563.3,2563.2,9.48375937]
[1748088586865,4.50122108,2563.3,2563.2,9.48375937]
[1748088590120,0.6,2563.3,2563.2,9.48375937]
[1748088590304,0.6,2563.3,2563.2,10.31365937]
[1748088592523,11.696,2564.2,2563.5,9.3799]
[1748088592727,3.9000039,2564.1,2564.0,1.33759366]
[1748088593894,4.7001039,2564.1,2564.0,1.33759366]
[1748088594624,3.90030812,2563.9,2563.8,1.33759366]
[1748088597137,4.67741239,2563.7,2563.6,1.33759366]
[1748088597728,4.67741239,2563.7,2563.6,9.33759366]
[1748088597925,3.90061239,2563.7,2563.6,9.33759366]
[1748088598131,15.59561239,2563.7,2563.6,9.33759366]
[1748088604271,3.90061239,2563.7,2563.6,9.33759366]
[1748088604568,3.90061239,2563.7,2563.6,8.0]
[1748088605754,4.50061239,2563.7,2563.6,8.0]
[1748088606816,16.19561239,2563.7,2563.6,8.0]
[1748088610259,4.50061239,2563.7,2563.6,8.0]
[1748088616669,4.50061239,2563.7,2563.2,0.55]
[1748088616670,3.90167772,2563.0,2562.9,25.5931]
[1748088616873,3.90167772,2563.0,2562.9,42.11069366]
[1748088617057,3.90167772,2563.0,2562.9,42.31395431]
[1748088617741,3.90167772,2563.0,2562.9,42.6877255]
[1748088618285,3.90167772,2563.0,2562.9,18.7556255]
[1748088618589,3.90167772,2563.0,2562.9,33.18336485]
[1748088618787,3.90167772,2563.0,2562.9,41.18336485]
[1748088619090,3.90167772,2563.0,2562.9,40.80959366]
[1748088620582,15.59667772,2563.0,2562.9,40.80959366]
[1748088620785,15.59667772,2563.0,2562.9,26.17859366]
[1748088626152,15.59667772,2563.0,2562.9,9.33759366]
[1748088629296,16.37537772,2563.0,2562.9,9.33759366]
[1748088629504,18.40306846,2563.0,2562.9,9.33759366]
[1748088633587,3.90274362,2562.3,2562.2,17.6651]
[1748088633911,3.90274362,2562.3,2562.2,42.18669366]
[1748088634061,3.90274362,2562.3,2562.2,41.36459366]
[1748088634394,15.60074362,2562.3,2562.2,41.36459366]
[1748088634587,15.60074362,2562.3,2562.2,37.31458675]
[1748088634895,15.60074362,2562.3,2562.2,45.31458675]
[1748088635099,15.60074362,2562.3,2562.2,32.81459366]
[1748088635796,15.60074362,2562.3,2562.2,1.33759366]
[1748088636999,3.9026164,2562.4,2562.3,0.55]
[1748088637000,3.90259132,2562.4,2562.3,0.55]
[1748088637756,3.90274362,2562.3,2562.2,2.16809366]
[1748088638155,3.90261024,2562.4,2562.3,0.8305]
[1748088638911,3.90274362,2562.3,2562.2,11.39840634]
[1748088640103,3.90289594,2562.2,2562.1,0.04564974]
[1748088641794,15.60289594,2562.2,2562.1,0.04564974]
[1748088643949,3.90289594,2562.2,2562.1,0.04564974]
[1748088644232,15.60289594,2562.2,2562.1,0.04564974]
[1748088646795,15.60289594,2562.2,2562.1,9.39654974]
[1748088647000,15.60289594,2562.2,2562.1,11.40372345]
[1748088648360,15.60289594,2562.2,2562.1,8.04564974]
[1748088648518,16.41939594,2562.2,2562.1,0.04564974]
[1748088651263,16.42139594,2562.2,2562.1,1.3832434]
[1748088653345,16.41069594,2562.2,2562.1,0.04564974]
[1748088653646,18.44203993,2562.2,2562.1,0.04564974]
[1748088655780,6.74003993,2562.2,2562.1,0.04564974]
[1748088655994,33.07503993,2562.2,2562.1,0.04564974]
[1748088656339,33.07703993,2562.2,2562.1,0.04564974]
[1748088657983,40.89353993,2562.2,2562.1,0.04564974]
[1748088658362,40.89453993,2562.2,2562.1,0.04564974]
[1748088660442,14.55653993,2562.2,2562.1,0.04564974]
[1748088660659,40.89653993,2562.2,2562.1,0.04564974]
[1748088661707,45.00053993,2562.2,2562.1,0.04564974]
[1748088662199,47.34253993,2562.2,2562.1,0.04564974]
[1748088662576,55.34253993,2562.2,2562.1,0.04564974]
[1748088663282,55.89253993,2562.2,2562.1,0.04564974]
[1748088664503,4.4209198,2561.2,2561.1,0.05]
[1748088664799,30.7629198,2561.2,2561.1,0.05]
[1748088665009,32.59162451,2561.2,2561.1,0.05]
[1748088665355,4.67164484,2560.2,2560.0,0.15]
[1748088665596,16.37664484,2560.2,2560.0,0.15]
[1748088665804,4.67164484,2560.2,2560.0,0.15]
[1748088666379,3.90594484,2560.2,2560.0,0.15]
[1748088666643,3.90594484,2560.2,2560.0,1.48759366]
[1748088667026,3.90594484,2560.2,2560.0,0.15]
[1748088667403,4.67164484,2560.2,2560.0,0.15]
[1748088667744,3.90594484,2560.2,2560.0,0.15]
[1748088667929,15.61194484,2560.2,2560.0,0.15]
[1748088668232,16.21194484,2560.2,2560.0,0.15]
[1748088670605,16.97244484,2560.2,2560.0,0.15]
[1748088670799,19.06026971,2560.2,2560.0,0.15]
[1748088672253,30.44786337,2560.2,2560.0,0.15]
[1748088672541,30.99786337,2560.2,2560.0,0.15]
[1748088673107,35.10186337,2560.2,2560.0,0.15]
[1748088673308,19.29186337,2560.2,2560.0,0.15]
[1748088673670,46.06186337,2560.2,2560.0,0.15]
[1748088674326,50.16586337,2560.2,2560.0,0.15]
[1748088675359,46.06186337,2560.2,2560.0,0.15]
[1748088675652,19.29186337,2560.2,2560.0,0.15]
[1748088675837,46.06686337,2560.2,2560.0,0.15]
[1748088676641,34.12926971,2560.2,2560.0,0.15]
[1748088677155,32.04144484,2560.2,2560.0,0.15]
[1748088680262,33.9290385,2560.2,2560.0,0.15]
[1748088681261,38.0330385,2560.2,2560.0,0.15]
[1748088682118,40.3750385,2560.2,2560.0,0.15]
[1748088683070,13.6000385,2560.2,2560.0,0.15]
[1748088683271,42.97487141,2560.2,2560.0,0.15]
[1748088683764,52.43121166,2560.2,2560.0,0.15]
[1748088685027,4.73757108,2559.2,2559.1,0.05]
[1748088685224,21.60857108,2559.2,2559.1,0.05]
[1748088685644,48.39057108,2559.2,2559.1,0.05]
[1748088685853,49.07969599,2559.2,2559.1,0.05]
[1748088687648,20.77847108,2559.2,2559.1,0.05]
[1748088687848,47.56447108,2559.2,2559.1,0.05]
[1748088688266,32.49547108,2559.2,2559.1,0.05]
[1748088689987,47.56647108,2559.2,2559.1,0.05]
[1748088694001,47.56747108,2559.2,2559.1,0.05]
[1748088694900,50.0853007,2559.2,2559.1,0.05]
[1748088695870,57.9028007,2559.2,2559.1,0.05]
[1748088696295,62.0068007,2559.2,2559.1,0.05]
[1748088696472,57.9028007,2559.2,2559.1,0.05]
[1748088696902,31.1128007,2559.2,2559.1,0.05]
[1748088697103,57.9028007,2559.2,2559.1,0.05]
[1748088699111,58.6851007,2559.2,2559.1,0.05]
[1748088699465,62.7891007,2559.2,2559.1,0.05]
[1748088700612,65.1311007,2559.2,2559.1,0.05]
[1748088701279,38.3411007,2559.2,2559.1,0.05]
[1748088701479,65.1941007,2559.2,2559.1,0.05]
[1748088703296,65.1951007,2559.2,2559.1,0.05]
[1748088704123,65.9286007,2559.2,2559.1,0.05]
[1748088704319,65.9286007,2559.2,2558.1,0.05]
[1748088704320,8.01299851,2558.2,2558.1,0.05]
[1748088704479,36.29438501,2558.2,2558.1,0.05]
[1748088705376,37.09328501,2558.2,2558.1,0.05]
[1748088705824,38.43800023,2558.2,2558.1,0.05]
[1748088705979,39.05523927,2558.2,2558.1,0.05]
[1748088706186,57.47533927,2558.2,2558.1,0.05]
[1748088706522,58.27423927,2558.2,2558.1,0.05]
[1748088706720,31.41923927,2558.2,2558.1,0.05]
[1748088706885,58.27423927,2558.2,2558.1,0.05]
[1748088708090,57.65700023,2558.2,2558.1,0.05]
[1748088708291,23.01128501,2558.2,2558.1,0.05]
[1748088708598,49.87028501,2558.2,2558.1,0.05]
[1748088709420,23.01128501,2558.2,2558.1,0.05]
[1748088709587,49.87028501,2558.2,2558.1,0.05]
[1748088710279,53.98328501,2558.2,2558.1,0.05]
[1748088711230,56.32528501,2558.2,2558.1,0.05]
[1748088712406,56.94252405,2558.2,2558.1,0.05]
[1748088712612,65.49252405,2558.2,2558.1,0.05]
[1748088713504,64.87528501,2558.2,2558.1,0.05]
[1748088715185,60.9662865,2558.2,2557.1,0.05]
[1748088715436,11.19422713,2557.2,2557.1,0.05]
[1748088715657,38.86022713,2557.2,2557.1,0.05]
[1748088715878,39.47571275,2557.2,2557.1,0.05]
[1748088716037,40.82042797,2557.2,2557.1,0.05]
[1748088716379,32.55525759,2557.2,2557.1,0.05]
[1748088716571,60.22325759,2557.2,2557.1,0.05]
[1748088716712,58.87854237,2557.2,2557.1,0.05]
[1748088716907,60.22325759,2557.2,2557.1,0.05]
[1748088717140,68.22325759,2557.2,2557.1,0.05]
[1748088717372,3.91205695,2556.2,2556.1,0.8713]
[1748088717668,15.63805695,2556.2,2556.1,0.8713]
[1748088718370,15.63805695,2556.2,2556.1,0.05]
[1748088719085,3.91205695,2556.2,2556.1,0.8713]
[1748088720517,3.91194979,2556.3,2556.1,0.8713]
[1748088720833,11.728,2556.7,2556.2,0.7676]
[1748088721042,3.91190392,2556.3,2556.2,0.55]
[1748088721239,3.91190392,2556.3,2556.2,1.3176]
[1748088722958,3.91190392,2556.3,2556.2,0.7676]
[1748088723319,3.90625109,2556.3,2556.2,0.7676]
[1748088724759,3.91205695,2556.2,2556.1,0.05]
[1748088727354,15.64105695,2556.2,2556.1,0.05]
[1748088727731,23.45755695,2556.2,2556.1,0.05]
[1748088727930,26.58511434,2556.2,2556.1,0.05]
[1748088728632,11.72855695,2556.2,2556.1,0.05]
[1748088728834,11.72855695,2556.2,2556.1,0.8385]
[1748088729562,3.91205695,2556.2,2556.1,0.8385]
[1748088730734,4.51205695,2556.2,2556.1,0.8385]
[1748088731477,16.24205695,2556.2,2556.1,0.8385]
[1748088732072,7.68096434,2556.2,2556.1,0.05]
[1748088732273,37.98155358,2556.2,2556.1,0.05]
[1748088732478,43.94396434,2556.2,2556.1,0.05]
[1748088732658,70.09145358,2556.2,2556.1,0.05]
[1748088733174,70.09145358,2556.2,2555.1,0.05]
[1748088733175,4.38438797,2555.2,2555.1,0.05]
[1748088733469,32.64738797,2555.2,2555.1,0.05]
[1748088734431,47.10238797,2555.2,2555.1,0.05]
[1748088734660,32.65438797,2555.2,2555.1,0.05]
[1748088735246,3.9195,2555.1,2552.4,3.73813588]
[1748088735575,11.91742077,2552.7,2552.4,3.73813588]
[1748088735774,3.91742077,2552.7,2552.4,3.73813588]
[1748088735934,3.34206188,2552.7,2552.4,3.73813588]
[1748088736336,3.9172577,2552.9,2552.4,3.73813588]
[1748088736639,3.9172577,2552.9,2552.6,3.9442039]
[1748088736640,3.91742077,2552.7,2552.6,3.9442039]
[1748088737234,3.91742077,2552.7,2552.6,3.1479039]
[1748088739560,3.91742077,2552.7,2552.6,11.1479039]
[1748088739950,3.91742077,2552.7,2552.6,11.9076039]
[1748088740589,3.91742077,2552.7,2552.6,8.7597]
[1748088741175,0.7958,2553.9,2552.6,8.7597]
[1748088741176,3.91726731,2552.8,2552.7,8.7597]
[1748088741379,3.91711893,2552.9,2552.7,12.56591892]
[1748088741563,3.91573341,2553.8,2552.7,12.56591892]
[1748088741564,3.91693886,2553.1,2552.8,3.56018924]
[1748088741771,3.91670587,2553.2,2552.8,0.7597]
[1748088741969,3.91676402,2553.2,2552.8,0.7597]
[1748088742193,3.91676402,2553.2,2552.7,11.80621892]
[1748088742194,3.91669035,2553.2,2553.0,0.7597]
[1748088742404,3.91669035,2553.2,2553.1,26.506]
[1748088744412,3.91619799,2553.5,2553.3,0.7597]
[1748088744706,11.741,2554.3,2553.3,0.7597]
[1748088745008,3.91597631,2553.7,2553.3,0.7597]
[1748088745331,3.91496691,2554.3,2553.5,8.55]
[1748088745472,3.91563834,2553.9,2553.5,8.55]
[1748088745669,3.91549028,2554.0,2553.7,0.55]
[1748088745876,3.91549028,2554.0,2553.6,0.8188]
[1748088745877,3.91542678,2554.0,2553.9,8.55]
[1748088746100,3.91446651,2554.7,2553.9,8.55]
[1748088746310,3.91489335,2554.4,2554.1,8.55]
[1748088746474,3.91489335,2554.4,2554.3,8.55]
[1748088747075,3.91491368,2554.4,2554.2,0.55]
[1748088747491,3.91478218,2554.5,2554.4,0.55]
[1748088747817,3.9146604,2554.5,2554.4,0.55]
[1748088748212,3.91481365,2554.4,2554.3,1.3688]
[1748088748373,3.91481365,2554.4,2554.3,27.8758]
[1748088749780,3.91481365,2554.4,2554.3,30.47029816]
[1748088750118,3.91481365,2554.4,2554.3,30.46929816]
[1748088750274,3.91481365,2554.4,2554.3,11.96329816]
[1748088750472,3.91569189,2553.9,2553.6,1.85985284]
[1748088750714,3.91467369,2554.5,2553.6,9.85985284]
[1748088750871,3.91588675,2553.7,2553.6,9.85985284]
[1748088751311,3.91588675,2553.7,2553.6,2.40985284]
[1748088751483,3.91579512,2553.8,2553.7,8.55]
[1748088751907,3.91420072,2554.8,2553.7,8.55]
[1748088752118,3.91554346,2554.0,2553.7,0.55]
[1748088752304,3.91554346,2554.0,2553.9,8.55]
[1748088752688,3.91509563,2554.3,2553.9,8.55]
[1748088752893,3.91526013,2554.2,2554.1,0.55]
[1748088753802,3.91507801,2554.3,2554.1,0.55]
[1748088754004,3.91512019,2554.2,2554.1,0.55]
[1748088754593,11.74,2554.7,2554.1,1.4857]
[1748088754793,3.91490421,2554.4,2554.1,1.4857]
[1748088755016,3.96407041,2554.9,2554.1,1.4857]
[1748088755188,0.05,2554.9,2554.1,1.4857]
[1748088755393,3.91489124,2554.4,2554.3,8.55]
[1748088755809,0.05,2554.9,2554.3,8.55]
[1748088755810,3.96406774,2554.9,2554.3,12.18007]
[1748088756006,3.91481365,2554.4,2554.3,12.18007]
[1748088756777,3.91481365,2554.4,2554.3,30.68507]
[1748088757376,3.91481365,2554.4,2554.3,27.831]
[1748088757881,3.9147358,2554.5,2554.4,8.55]
[1748088758278,3.9147358,2554.5,2554.4,0.55]
[1748088758622,3.9147358,2554.5,2554.4,27.055]
[1748088759200,3.9145836,2554.6,2554.5,8.55]
[1748088759400,3.91420121,2554.8,2554.5,0.55]
[1748088759738,3.91450716,2554.6,2554.5,8.55]
[1748088760400,3.91450716,2554.6,2554.5,27.054]
[1748088760586,0.05,2554.9,2554.6,8.0]
[1748088760790,3.91428513,2554.8,2554.7,0.55]
[1748088763714,3.91428513,2554.8,2554.7,27.053]
[1748088765661,3.91428513,2554.8,2554.7,8.0]
[1748088767553,3.91428513,2554.8,2554.7,8.55]
[1748088768087,3.96416367,2554.9,2554.8,8.55]
[1748088768339,3.96416367,2554.9,2554.8,1.3458]
[1748088770045,3.96416367,2554.9,2554.8,9.3458]
[1748088770598,0.05,2554.9,2554.8,9.3458]
[1748088770834,0.05,2554.9,2554.8,12.07458]
[1748088771336,3.96404751,2554.9,2554.8,12.07458]
[1748088771503,0.05,2554.9,2554.8,12.07458]
[1748088772400,3.96404751,2554.9,2554.8,1.3458]
[1748088772598,3.96404751,2554.9,2554.8,9.3458]
[1748088772797,3.96404751,2554.9,2554.2,0.8253]
[1748088772798,3.91496691,2554.3,2554.2,0.8253]
[1748088774117,3.91527348,2554.1,2554.0,8.0]
[1748088774543,3.91527348,2554.1,2554.0,25.941]
[1748088775338,3.91527348,2554.1,2554.0,26.491]
[1748088775538,0.45715108,2554.8,2554.2,0.55]
[1748088775892,3.91496691,2554.3,2554.2,0.55]
[1748088776091,0.45715108,2554.8,2554.2,0.55]
[1748088776340,3.91492384,2554.4,2554.2,0.55]
[1748088776811,3.91492384,2554.4,2554.3,8.55]
[1748088777597,3.91492384,2554.4,2554.3,26.491]
[1748088778810,3.91492384,2554.4,2554.3,0.55]
[1748088779144,3.91512019,2554.2,2554.1,25.941]
[1748088779326,3.91512019,2554.2,2553.9,0.8253]
[1748088779327,3.91542678,2554.0,2553.9,0.8253]
[1748088779915,3.91558009,2553.9,2553.8,8.0]
[1748088780120,3.91619345,2553.5,2553.3,0.8253]
[1748088780322,3.91650021,2553.3,2553.2,34.843]
[1748088780503,3.91641451,2553.4,2553.3,8.0]
[1748088780843,11.737,2553.8,2553.3,2.80209676]
[1748088781151,3.9158957,2553.7,2553.5,8.0]
[1748088781441,3.91619345,2553.5,2553.4,0.8253]
[1748088781746,3.91619345,2553.5,2553.4,1.3753]
[1748088781963,3.91619345,2553.5,2553.4,0.8253]
[1748088782144,3.91619345,2553.5,2553.4,0.55]
[1748088783559,3.91612174,2553.6,2553.4,0.55]
[1748088783736,4.37245122,2554.1,2553.6,0.55]
[1748088783737,3.91603333,2553.7,2553.6,0.55]
[1748088784140,3.91625447,2553.5,2553.3,8.55]
[1748088784323,11.738,2553.9,2553.3,26.494]
[1748088784528,3.91634683,2553.4,2553.3,26.494]
[1748088784872,3.91634683,2553.4,2553.3,25.944]
[1748088785035,3.91634683,2553.4,2553.3,17.944]
[1748088785224,12.504,2554.1,2553.4,1.32]
[1748088785427,12.504,2554.1,2553.4,12.12209676]
[1748088785428,3.91598214,2553.7,2553.4,12.12209676]
[1748088785770,0.45715108,2554.2,2553.4,16.03836328]
[1748088785937,3.91546922,2554.0,2553.6,8.55]
[1748088786266,3.91588675,2553.7,2553.6,8.55]
[1748088786455,3.91575673,2553.8,2553.6,8.55]
[1748088786767,3.91527348,2554.1,2553.4,2.80209676]
[1748088787066,3.91665361,2553.2,2553.1,0.77]
[1748088787270,3.91696043,2553.0,2552.9,17.946]
[1748088787968,3.90700686,2553.0,2552.9,17.946]
[1748088788262,3.91772771,2552.5,2552.4,17.675]
[1748088788469,3.91772771,2552.5,2552.4,43.623]
[1748088788966,3.91735408,2552.8,2552.5,8.0]
[1748088789268,3.91662014,2553.3,2552.5,8.0]
[1748088789269,3.91742077,2552.7,2552.5,8.0]
[1748088789440,3.91742077,2552.7,2552.1,0.05]
[1748088789441,0.766,2552.7,2552.1,0.05]
[1748088789764,3.91817404,2552.3,2552.1,0.05]
[1748088790066,3.91803492,2552.3,2552.1,0.05]
[1748088790270,3.91818822,2552.2,2552.1,0.05]
[1748088790625,3.91818822,2552.2,2552.1,8.05]
[1748088791350,17.23891207,2552.2,2552.1,0.05]
[1748088793894,17.24091207,2552.2,2552.1,0.05]
[1748088794279,16.45728822,2552.2,2552.1,0.05]
[1748088794591,15.66118822,2552.2,2552.1,0.05]
[1748088794795,3.91818822,2552.2,2552.1,0.05]
[1748088794952,15.66318822,2552.2,2552.1,0.05]
[1748088795151,3.91818822,2552.2,2552.1,0.05]
[1748088795798,4.51818822,2552.2,2552.1,0.05]
[1748088796883,0.6,2552.2,2552.1,0.05]
[1748088797098,0.6,2552.2,2552.1,8.6]
[1748088797295,0.6,2552.2,2552.1,5.74479646]
[1748088797495,0.6,2552.2,2552.1,6.56969646]
[1748088797696,0.6,2552.2,2552.1,9.40934356]
[1748088799582,0.3375,2552.2,2552.1,9.40934356]
[1748088799894,0.3375,2552.2,2552.1,9.95878252]
[1748088800487,3.91696629,2553.0,2552.7,0.55]
[1748088800691,3.91669041,2553.2,2552.9,8.0]
[1748088800864,3.91696043,2553.0,2552.9,8.55]
[1748088802676,0.7644,2553.6,2552.9,8.55]
[1748088802992,3.91696043,2553.0,2552.9,8.55]
[1748088803503,3.91660402,2553.3,2553.0,0.55]
[1748088803722,0.7644,2553.6,2553.1,8.0]
[1748088803858,3.91607,2553.6,2553.2,0.55]
[1748088804063,3.91633847,2553.5,2553.2,0.55]
[1748088804299,3.91610685,2553.6,2553.2,0.55]
[1748088804484,3.91619345,2553.5,2553.4,0.55]
[1748088805402,3.91611675,2553.6,2553.4,0.55]
[1748088805613,4.67962561,2554.2,2553.4,8.55]
[1748088805899,3.91570822,2553.9,2553.4,8.55]
[1748088806102,0.7644,2554.2,2553.6,0.55]
[1748088806289,3.9156195,2553.9,2553.6,0.55]
[1748088806463,1.46358562,2554.9,2553.8,0.55]
[1748088806666,5.37768037,2554.9,2554.1,0.7833]
[1748088806887,3.91478673,2554.5,2554.1,0.7833]
[1748088807064,3.91455391,2554.6,2554.1,0.7833]
[1748088807260,0.45715108,2554.8,2554.3,0.55]
[1748088807505,0.45715108,2554.8,2554.5,8.55]
[1748088807677,3.91435393,2554.7,2554.5,8.55]
[1748088808023,0.05,2554.9,2554.5,8.55]
[1748088808610,3.91431658,2554.8,2554.5,8.55]
[1748088809311,3.91431658,2554.8,2554.5,10.98567975]
[1748088809601,0.05,2554.9,2554.5,10.98567975]
[1748088809602,3.96410706,2554.9,2554.5,10.98567975]
[1748088809819,0.05,2554.9,2554.5,10.98567975]
[1748088810193,0.05,2554.9,2554.7,0.55]
[1748088810766,0.05,2554.9,2554.8,10.8396471]
[1748088810969,0.05,2554.9,2554.8,26.76629471]
[1748088811204,0.05,2554.9,2554.8,34.07014253]
[1748088811681,0.05,2554.9,2554.8,27.31629471]
[1748088812039,0.05,2554.9,2554.8,31.23049543]
[1748088812677,0.05,2554.9,2554.8,27.31629471]
[1748088812886,3.96404751,2554.9,2554.8,26.096]
[1748088813072,0.05,2554.9,2554.8,26.096]
[1748088813411,0.05,2555.9,2555.0,0.55]
[1748088813566,3.91276795,2555.8,2555.5,8.55]
[1748088813926,0.05,2555.9,2555.7,8.55]
[1748088814265,3.96253866,2555.9,2555.7,8.55]
[1748088814470,0.05,2555.9,2555.7,8.55]
[1748088814714,3.96260586,2555.9,2555.7,8.55]
[1748088814969,3.91266922,2555.8,2555.7,8.55]
[1748088815301,3.91266922,2555.8,2555.7,25.542]
[1748088815924,3.9626029,2555.9,2555.8,8.45533]
[1748088816430,0.05,2555.9,2555.8,8.45533]
[1748088816759,0.05,2555.9,2555.8,29.90999922]
[1748088816889,3.9611124,2556.9,2555.9,0.7598]
[1748088816890,0.05,2556.9,2555.9,0.7598]
[1748088817090,0.05,2556.9,2556.4,8.0]
[1748088817304,0.05,2556.9,2556.6,8.0]
[1748088817832,3.91129189,2556.7,2556.6,8.0]
[1748088817988,3.91129189,2556.7,2556.6,8.55]
[1748088819433,4.69853506,2556.7,2556.6,8.0]
[1748088819599,3.91188737,2556.4,2556.1,8.55]
[1748088819799,3.91192084,2556.3,2556.2,25.538]
[1748088820430,3.91192084,2556.3,2556.2,26.088]
[1748088820837,3.91192084,2556.3,2556.2,25.538]
[1748088821240,3.91192084,2556.3,2556.2,8.55]
[1748088821431,4.69428953,2556.3,2556.2,0.55]
[1748088821744,4.69428953,2556.3,2556.0,8.55]
[1748088821745,3.91221,2556.1,2556.0,8.55]
[1748088822243,3.91221,2556.1,2556.0,26.085]
[1748088823235,3.91221,2556.1,2556.0,8.55]
[1748088823541,3.91221,2556.1,2556.0,26.085]
[1748088824607,3.91221,2556.1,2556.0,26.084]
[1748088824799,3.91221,2556.1,2556.0,8.55]
[1748088825001,3.91221,2556.1,2556.0,26.084]
[1748088825760,4.51195442,2556.3,2556.0,26.084]
[1748088825906,0.6,2556.3,2556.1,18.084]
[1748088826105,3.91205695,2556.2,2556.1,26.084]
[1748088826613,0.6,2556.3,2556.2,8.55]
[1748088826821,3.91184637,2556.4,2556.3,0.55]
[1748088828207,3.91175089,2556.4,2556.3,11.3896471]
[1748088828417,3.91160352,2556.5,2556.3,4.6546584]
[1748088828623,3.9115702,2556.6,2556.4,0.55]
[1748088828825,3.91159788,2556.5,2556.4,0.55]
[1748088829250,3.91144184,2556.7,2556.4,0.55]
[1748088829435,3.91142552,2556.7,2556.4,0.55]
[1748088829644,3.91142552,2556.7,2556.6,11.3896471]